fUSD/lending_fUSD_20240301
["ID","MTS","AMOUNT","RATE_DAILY","PERIOD"]
[315932716,1709290246479,-500.0,0.00021917,2]
[315932717,1709290246488,-1449.34,0.00021917,2]
[315932718,1709290246498,-500.0,0.00021917,2]
[315932719,1709290246507,-1680.01,0.00021917,2]
[315932720,1709290246515,-500.0,0.00021917,2]
[315932721,1709290246524,-500.0,0.00021917,2]
[315932722,1709290246533,-500.0,0.00021917,2]
[315932723,1709290246542,-500.0,0.00021917,2]
[315932724,1709290246551,-2226.08,0.00021917,2]
[315932725,1709290246560,-1631.88,0.00021917,2]
[315932726,1709290246569,-887.01,0.00021917,2]
[315932727,1709290246578,-1155.69,0.00021917,2]
[315932728,1709290246587,-3249.27,0.00021917,2]
[315932729,1709290246596,-500.0,0.00021917,2]
[315932730,1709290246605,-2131.91,0.00021917,2]
[315932731,1709290246614,-556.17,0.00021917,2]
[315932732,1709290246623,-1229.75,0.00021917,2]
[315932733,1709290246632,-1382.16,0.00021917,2]
[315932734,1709290246641,-1547.67,0.00021917,2]
[315932735,1709290246650,-500.0,0.00021917,2]
[315932736,1709290246659,-500.0,0.00021917,2]
[315932737,1709290246668,-779.25,0.00021917,2]
[315932738,1709290246677,-770.87,0.00021917,2]
[315932739,1709290246686,-500.0,0.00021917,2]
[315932740,1709290246695,-746.13,0.00021917,2]
[315932741,1709290246705,-922.39,0.00021917,2]
[315932742,1709290246714,-1117.88,0.00021917,2]
[315932743,1709290246723,-573.9,0.00021917,2]
[315932744,1709290246732,-8543.43,0.00021917,2]
[315932745,1709290246740,-500.0,0.00021917,2]
[315932746,1709290246750,-4087.31,0.00021917,2]
[315932747,1709290246759,-508.41,0.00021917,2]
[315932748,1709290246768,-500.0,0.00021917,2]
[315932749,1709290246777,-500.0,0.00021917,2]
[315932750,1709290246786,-602.04,0.00021917,2]
[315932751,1709290246796,-500.0,0.00021917,2]
[315932752,1709290246805,-1063.57,0.00021917,2]
[315932753,1709290246814,-2878.28,0.00021917,2]
[315932754,1709290246823,-500.0,0.00021917,2]
[315932755,1709290246831,-518.7328433,0.00021917,2]
[315932756,1709290246841,-863.92,0.00021917,2]
[315932757,1709290246850,-606.95,0.00021917,2]
[315932758,1709290246859,-2140.8,0.00021917,2]
[315932759,1709290246873,-500.0,0.00021917,2]
[315932760,1709290246883,-1612.73,0.00021917,2]
[315932761,1709290246892,-715.14,0.00021917,2]
[315932762,1709290246901,-619.27,0.00021917,2]
[315932763,1709290246911,-500.0,0.00021917,2]
[315932764,1709290246920,-500.0,0.00021917,2]
[315932765,1709290246930,-277.97,0.00021917,2]
[315932766,1709290246939,-1173.98,0.00021917,2]
[315932767,1709290246948,-500.0,0.00021917,2]
[315932768,1709290246958,-500.0,0.00021917,2]
[315932769,1709290246967,-860.5,0.00021917,2]
[315932770,1709290246977,-1413.06,0.00021917,2]
[315932771,1709290246986,-1060.4,0.00021917,2]
[315932772,1709290246995,-500.0,0.00021917,2]
[315932773,1709290247005,-1331.73,0.00021917,2]
[315932774,1709290247014,-500.0,0.00021917,2]
[315932775,1709290247025,-349.39475287,0.00021917,2]
[315932776,1709290247034,-638.95,0.00021917,2]
[315932777,1709290247043,-629.16,0.00021917,2]
[315932778,1709290247053,-1975.97,0.00021917,2]
[315932779,1709290247062,-794.11,0.00021917,2]
[315932780,1709290247071,-534.09,0.00021917,2]
[315932781,1709290247080,-500.0,0.00021917,2]
[315932782,1709290247090,-534.09,0.00021917,2]
[315932783,1709290247100,-534.09,0.00021917,2]
[315932784,1709290247109,-594.17,0.00021917,2]
[315932785,1709290247118,-534.09,0.00021917,2]
[315932786,1709290247127,-717.22,0.00021917,2]
[315932787,1709290247137,-534.09,0.00021917,2]
[315932788,1709290247146,-534.09,0.00021917,2]
[315932789,1709290247155,-500.0,0.00021917,2]
[315932790,1709290247164,-1212.34,0.00021917,2]
[315932791,1709290247173,-527.91,0.00021917,2]
[315932792,1709290247182,-500.0,0.00021917,2]
[315932793,1709290247191,-612.0,0.00021917,2]
[315932794,1709290247200,-743.49,0.00021917,2]
[315932795,1709290247210,-3165.85,0.00021917,2]
[315932796,1709290247219,-907.74,0.00021917,2]
[315932797,1709290247228,-1325.89,0.00021917,2]
[315932798,1709290247237,-318.11849776,0.00021917,2]
[315932799,1709290247246,-709.06,0.00021917,2]
[315932800,1709290247255,-500.0,0.00021917,2]
[315932801,1709290247265,-500.0,0.00021917,2]
[315932802,1709290247274,-763.22,0.00021917,2]
[315932803,1709290247283,-897.84,0.00021917,2]
[315932804,1709290247293,-577.14,0.00021917,2]
[315932805,1709290247302,-500.0,0.00021917,2]
[315932806,1709290247311,-1784.68,0.00021917,2]
[315932807,1709290247321,-644.88,0.00021917,2]
[315932808,1709290247330,-1267.55,0.00021917,2]
[315932809,1709290247339,-500.0,0.00021917,2]
[315932810,1709290247348,-500.0,0.00021917,2]
[315932811,1709290247358,-736.17,0.00021917,2]
[315932812,1709290247367,-855.02,0.00021917,2]
[315932813,1709290247376,-4084.69,0.00021917,2]
[315932814,1709290247386,-501.54,0.00021917,2]
[315932815,1709290247395,-500.0,0.00021917,2]
[315932816,1709290247404,-708.27,0.00021917,2]
[315932817,1709290247414,-622.42,0.00021917,2]
[315932818,1709290247423,-500.0,0.00021917,2]
[315932819,1709290247433,-500.0,0.00021917,2]
[315932820,1709290247442,-500.0,0.00021917,2]
[315932821,1709290247451,-1058.45,0.00021917,2]
[315932822,1709290247460,-655.11,0.00021917,2]
[315932823,1709290247469,-867.93,0.00021917,2]
[315932824,1709290247478,-1425.45,0.00021917,2]
[315932825,1709290247488,-500.0,0.00021917,2]
[315932826,1709290247497,-500.0,0.00021917,2]
[315932827,1709290247508,-566.6,0.00021917,2]
[315932828,1709290247517,-500.0,0.00021917,2]
[315932829,1709290247531,-832.0,0.00021917,2]
[315932830,1709290247540,-591.99,0.00021917,2]
[315932831,1709290247550,-12435.84,0.00021917,2]
[315932832,1709290247559,-827.41,0.00021917,2]
[315932833,1709290247569,-818.48,0.00021917,2]
[315932834,1709290247578,-1583.61,0.00021917,2]
[315932835,1709290247588,-1636.93,0.00021917,2]
[315932836,1709290247598,-765.76,0.00021917,2]
[315932837,1709290247607,-642.66,0.00021917,2]
[315932838,1709290247617,-516.66,0.00021917,2]
[315932839,1709290247626,-500.0,0.00021917,2]
[315932840,1709290247636,-837.77,0.00021917,2]
[315932841,1709290247645,-537.56,0.00021917,2]
[315932842,1709290247655,-901.5,0.00021917,2]
[315932843,1709290247665,-500.0,0.00021917,2]
[315932844,1709290247675,-514.61,0.00021917,2]
[315932845,1709290247684,-532.23,0.00021917,2]
[315932846,1709290247693,-2493.79,0.00021917,2]
[315932847,1709290247704,-8857.83,0.00021917,2]
[315932848,1709290247713,-715.45,0.00021917,2]
[315932849,1709290247723,-2245.39,0.00021917,2]
[315932850,1709290247732,-532.61,0.00021917,2]
[315932851,1709290247741,-220.76256879,0.00021917,2]
[315932852,1709290247751,-500.0,0.00021917,2]
[315932853,1709290247760,-1289.72,0.00021917,2]
[315932854,1709290247769,-500.0,0.00021917,2]
[315932855,1709290247778,-500.0,0.00021917,2]
[315932856,1709290247787,-500.0,0.00021917,2]
[315932857,1709290247797,-500.0,0.00021917,2]
[315932858,1709290247806,-500.0,0.00021917,2]
[315932859,1709290247815,-500.0,0.00021917,2]
[315932860,1709290247825,-695.59,0.00021917,2]
[315932861,1709290247835,-3387.16,0.00021917,2]
[315932862,1709290247844,-500.0,0.00021917,2]
[315932863,1709290247853,-2374.96,0.00021917,2]
[315932864,1709290247862,-1998.89,0.00021917,2]
[315932865,1709290247872,-4947.84,0.00021917,2]
[315932866,1709290247884,-848.1,0.00021917,2]
[315932867,1709290247894,-500.0,0.00021917,2]
[315932868,1709290247904,-290.73,0.00021918,2]
[315932869,1709290247914,-254.98,0.00021918,2]
[315932870,1709290247923,-157.2,0.00021918,2]
[315932871,1709290247932,-153.09,0.00021918,2]
[315932872,1709290247943,-1153.0,0.00021921,2]
[315932873,1709290247955,-152.0,0.00021921,2]
[315932874,1709290247964,-249.10988376,0.00021967,2]
[315932875,1709290247973,-437.19164382,0.00022,2]
[315932876,1709290247983,-21166.80111274,0.00022,2]
[315932877,1709290247992,-400.0,0.00022,3]
[315932878,1709290248001,-500.0,0.00022,2]
[315932879,1709290248010,-168.307,0.00022015,2]
[315932880,1709290248020,-151.0,0.00022015,2]
[315932881,1709290248029,-153.024,0.00022015,2]
[315932882,1709290248039,-183.0,0.00022015,2]
[315932883,1709290248048,-249.526,0.00022015,2]
[315932884,1709290248058,-200.0,0.00022022,2]
[315932885,1709290248068,-290.73,0.00022033,2]
[315932886,1709290248077,-254.98,0.00022033,2]
[315932887,1709290248086,-2837.13524473,0.0002205,2]
[315932888,1709290248096,-178.11951267,0.00022119,2]
[315932889,1709290248105,-290.73,0.00022149,2]
[315932890,1709290248114,-254.98,0.00022149,2]
[315932891,1709290248124,-200.0,0.00022186,2]
[315932892,1709290248134,-183.37648964,0.00022189,2]
[315932893,1709290248144,-155.0,0.00022189,2]
[315932894,1709290248153,-155.19221555,0.0002219,2]
[315932895,1709290248163,-312.10768911,0.0002219,2]
[315932896,1709290248173,-600.0,0.0002219,2]
[315932897,1709290248182,-289.0,0.0002219,2]
[315932898,1709290248193,-198.64544914,0.0002219,2]
[315932899,1709290248204,-7702.95368818,0.0002219,2]
[315932900,1709290248214,-183.91816427,0.0002219,2]
[315932901,1709290248224,-300.0,0.0002219,2]
[315932902,1709290248233,-534.09,0.0002219,2]
[315932903,1709290248242,-136133.60677986,0.00022191,2]
[315932904,1709290248252,-500.0,0.00022191,2]
[315932905,1709290248261,-500.0,0.00022191,2]
[315932906,1709290248270,-500.0,0.00022191,2]
[315932907,1709290248279,-500.0,0.00022191,2]
[315932908,1709290248288,-500.0,0.00022191,2]
[315932909,1709290248298,-500.0,0.00022191,2]
[315932910,1709290248307,-500.0,0.00022191,2]
[315932911,1709290248316,-500.0,0.00022191,2]
[315932912,1709290248325,-500.0,0.00022191,2]
[315932913,1709290248334,-500.0,0.00022191,2]
[315932914,1709290248344,-718.88,0.00022191,2]
[315932915,1709290248353,-1087.32,0.00022191,2]
[315932916,1709290248362,-500.0,0.00022191,2]
[315932917,1709290248372,-500.0,0.00022191,2]
[315932918,1709290248381,-518.1,0.00022191,2]
[315932919,1709290248390,-500.0,0.00022191,2]
[315932920,1709290248400,-1133.43,0.00022191,2]
[315932921,1709290248409,-500.0,0.00022191,2]
[315932922,1709290248419,-500.0,0.00022191,2]
[315932923,1709290248428,-505.52,0.00022191,2]
[315932924,1709290248437,-500.0,0.00022191,2]
[315932925,1709290248447,-500.0,0.00022191,2]
[315932926,1709290248459,-500.0,0.00022191,2]
[315932927,1709290248468,-500.0,0.00022191,2]
[315932928,1709290248477,-500.0,0.00022191,2]
[315932929,1709290248486,-523.6,0.00022191,2]
[315932930,1709290248496,-500.0,0.00022191,2]
[315932931,1709290248505,-500.0,0.00022191,2]
[315932932,1709290248515,-500.0,0.00022191,2]
[315932933,1709290248524,-553.02447166,0.00022191,2]
[315932934,1709290248534,-912.63,0.00022191,2]
[315932935,1709290248543,-500.0,0.00022191,2]
[315932936,1709290248552,-500.0,0.00022191,2]
[315932937,1709290248561,-500.0,0.00022191,2]
[315932938,1709290248571,-500.0,0.00022191,2]
[315932939,1709290248580,-500.0,0.00022191,2]
[315932940,1709290248590,-500.0,0.00022191,2]
[315932941,1709290248599,-561.12,0.00022191,2]
[315932942,1709290248608,-592.16999662,0.00022191,2]
[315932943,1709290248617,-500.0,0.00022191,2]
[315932944,1709290248627,-500.0,0.00022191,2]
[315932945,1709290248637,-500.0,0.00022191,2]
[315932946,1709290248646,-500.0,0.00022191,2]
[315932947,1709290248655,-500.0,0.00022191,2]
[315932948,1709290248664,-500.0,0.00022191,2]
[315932949,1709290248674,-500.0,0.00022191,2]
[315932950,1709290248683,-500.0,0.00022191,2]
[315932951,1709290248692,-599.88,0.00022191,2]
[315932952,1709290248702,-500.0,0.00022191,2]
[315932953,1709290248711,-500.0,0.00022191,2]
[315932954,1709290248720,-500.0,0.00022191,2]
[315932955,1709290248730,-500.0,0.00022191,2]
[315932956,1709290248739,-500.0,0.00022191,2]
[315932957,1709290248749,-500.0,0.00022191,2]
[315932958,1709290248759,-500.0,0.00022191,2]
[315932959,1709290248769,-500.0,0.00022191,2]
[315932960,1709290248778,-500.0,0.00022191,2]
[315932961,1709290248788,-500.0,0.00022191,2]
[315932962,1709290248798,-500.0,0.00022191,2]
[315932963,1709290248807,-529.94445032,0.00022191,2]
[315932964,1709290248817,-500.0,0.00022191,2]
[315932965,1709290248826,-500.0,0.00022191,2]
[315932966,1709290248835,-694.44,0.00022191,2]
[315932967,1709290248845,-500.0,0.00022191,2]
[315932968,1709290248854,-500.0,0.00022191,2]
[315932969,1709290248865,-500.0,0.00022191,2]
[315932970,1709290248874,-500.0,0.00022191,2]
[315932971,1709290248885,-500.0,0.00022191,2]
[315932972,1709290248895,-667.59,0.00022191,2]
[315932973,1709290248905,-890.47,0.00022191,2]
[315932974,1709290248915,-500.0,0.00022191,2]
[315932975,1709290248925,-513.93,0.00022191,2]
[315932976,1709290248935,-500.0,0.00022191,2]
[315932977,1709290248944,-500.0,0.00022191,2]
[315932978,1709290248955,-711.63,0.00022191,2]
[315932979,1709290248965,-500.0,0.00022191,2]
[315932980,1709290248975,-500.0,0.00022191,2]
[315932981,1709290248985,-500.0,0.00022191,2]
[315932982,1709290248994,-506.92285983,0.00022191,2]
[315932983,1709290249004,-500.0,0.00022191,2]
[315932984,1709290249014,-500.0,0.00022191,2]
[315932985,1709290249023,-500.0,0.00022191,2]
[315932986,1709290249033,-500.0,0.00022191,2]
[315932987,1709290249042,-500.0,0.00022191,2]
[315932988,1709290249052,-660.37,0.00022191,2]
[315932989,1709290249061,-500.0,0.00022191,2]
[315932990,1709290249070,-500.0,0.00022191,2]
[315932991,1709290249080,-500.0,0.00022191,2]
[315932992,1709290249089,-500.0,0.00022191,2]
[315932993,1709290249099,-501.72,0.00022191,2]
[315932994,1709290249108,-500.0,0.00022191,2]
[315932995,1709290249117,-500.0,0.00022191,2]
[315932996,1709290249126,-500.0,0.00022191,2]
[315932997,1709290249135,-500.0,0.00022191,2]
[315932998,1709290249145,-500.0,0.00022191,2]
[315932999,1709290249154,-500.0,0.00022191,2]
[315933000,1709290249163,-500.0,0.00022191,2]
[315933001,1709290249173,-500.0,0.00022191,2]
[315933002,1709290249182,-500.0,0.00022191,2]
[315933003,1709290249191,-565.56,0.00022191,2]
[315933004,1709290249202,-500.0,0.00022191,2]
[315933005,1709290249211,-500.0,0.00022191,2]
[315933006,1709290249220,-500.0,0.00022191,2]
[315933007,1709290249229,-500.0,0.00022191,2]
[315933008,1709290249238,-500.0,0.00022191,2]
[315933009,1709290249248,-500.0,0.00022191,2]
[315933010,1709290249257,-500.0,0.00022191,2]
[315933011,1709290249266,-500.0,0.00022191,2]
[315933012,1709290249276,-500.0,0.00022191,2]
[315933013,1709290249285,-500.0,0.00022191,2]
[315933014,1709290249294,-618.79,0.00022191,2]
[315933015,1709290249303,-404.05080125,0.00022191,2]
[315933016,1709290249332,-322.87653265,0.00022191,2]
[315933017,1709290249563,-84.8526661,0.00022191,2]
[315933018,1709290249573,-566.51,0.00022191,2]
[315933019,1709290249582,-500.0,0.00022191,2]
[315933020,1709290249592,-500.0,0.00022191,2]
[315933021,1709290249602,-500.0,0.00022191,2]
[315933022,1709290249612,-521.06,0.00022191,2]
[315933023,1709290249622,-500.0,0.00022191,2]
[315933024,1709290249632,-500.0,0.00022191,2]
[315933025,1709290249641,-500.0,0.00022191,2]
[315933026,1709290249651,-682.82,0.00022191,2]
[315933027,1709290249661,-500.0,0.00022191,2]
[315933028,1709290249670,-500.0,0.00022191,2]
[315933029,1709290249679,-500.0,0.00022191,2]
[315933030,1709290249688,-500.0,0.00022191,2]
[315933031,1709290249697,-500.0,0.00022191,2]
[315933032,1709290249707,-517.25,0.00022191,2]
[315933033,1709290249717,-500.0,0.00022191,2]
[315933034,1709290249726,-613.69,0.00022191,2]
[315933035,1709290249735,-500.0,0.00022191,2]
[315933036,1709290249744,-500.0,0.00022191,2]
[315933037,1709290249753,-500.0,0.00022191,2]
[315933038,1709290249762,-150.0,0.00022191,2]
[315933039,1709290249771,-500.0,0.00022191,2]
[315933040,1709290249780,-500.0,0.00022191,2]
[315933041,1709290249789,-500.0,0.00022191,2]
[315933042,1709290249798,-500.0,0.00022191,2]
[315933043,1709290249808,-513.12470437,0.00022191,2]
[315933044,1709290249817,-775.67,0.00022191,2]
[315933045,1709290249827,-500.0,0.00022191,2]
[315933046,1709290249837,-500.0,0.00022191,2]
[315933047,1709290249848,-504.99,0.00022191,2]
[315933048,1709290249858,-500.0,0.00022191,2]
[315933049,1709290249868,-500.0,0.00022191,2]
[315933050,1709290249878,-500.0,0.00022191,2]
[315933051,1709290249888,-500.0,0.00022191,2]
[315933052,1709290249898,-240.34,0.00022191,2]
[315933053,1709290249908,-500.0,0.00022191,2]
[315933054,1709290249917,-549.66,0.00022191,2]
[315933055,1709290249927,-768.95,0.00022191,2]
[315933056,1709290249937,-500.0,0.00022191,2]
[315933057,1709290249946,-500.0,0.00022191,2]
[315933058,1709290249957,-232.56,0.00022191,2]
[315933059,1709290249966,-500.0,0.00022191,2]
[315933060,1709290249976,-784.54,0.00022191,2]
[315933061,1709290250150,-500.0,0.00022191,2]
[315933062,1709290250161,-500.0,0.00022191,2]
[315933063,1709290250171,-500.0,0.00022191,2]
[315933064,1709290250182,-500.0,0.00022191,2]
[315933065,1709290250191,-502.16,0.00022191,2]
[315933066,1709290250201,-500.0,0.00022191,2]
[315933067,1709290250212,-473.40546257,0.00022191,2]
[315933068,1709290250221,-1217.78,0.00022191,2]
[315933069,1709290250230,-553.61,0.00022191,2]
[315933070,1709290250240,-500.0,0.00022191,2]
[315933071,1709290250249,-574.2,0.00022191,2]
[315933072,1709290250259,-500.0,0.00022191,2]
[315933073,1709290250269,-500.0,0.00022191,2]
[315933074,1709290250279,-500.0,0.00022191,2]
[315933075,1709290250289,-500.0,0.00022191,2]
[315933076,1709290250299,-500.0,0.00022191,2]
[315933077,1709290250309,-500.0,0.00022191,2]
[315933078,1709290250320,-500.0,0.00022191,2]
[315933079,1709290250330,-500.0,0.00022191,2]
[315933080,1709290250340,-1772.99,0.00022191,2]
[315933081,1709290250350,-356.22513648,0.00022191,2]
[315933082,1709290250360,-500.0,0.00022191,2]
[315933083,1709290250370,-500.0,0.00022191,2]
[315933084,1709290250380,-506.55,0.00022191,2]
[315933085,1709290250391,-500.0,0.00022191,2]
[315933086,1709290250400,-500.0,0.00022191,2]
[315933087,1709290250410,-500.0,0.00022191,2]
[315933088,1709290250425,-500.0,0.00022191,2]
[315933089,1709290250436,-500.0,0.00022191,2]
[315933090,1709290250447,-500.0,0.00022191,2]
[315933091,1709290250459,-946.45,0.00022191,2]
[315933092,1709290250471,-511.41559348,0.00022191,2]
[315933093,1709290250482,-500.0,0.00022191,2]
[315933094,1709290250492,-837.28,0.00022191,2]
[315933095,1709290250503,-500.0,0.00022191,2]
[315933096,1709290250513,-500.0,0.00022191,2]
[315933097,1709290250523,-521.41,0.00022191,2]
[315933098,1709290250533,-500.0,0.00022191,2]
[315933099,1709290250543,-500.0,0.00022191,2]
[315933100,1709290250553,-876.49,0.00022191,2]
[315933101,1709290250563,-500.0,0.00022191,2]
[315933102,1709290250572,-500.0,0.00022191,2]
[315933103,1709290250582,-500.0,0.00022191,2]
[315933104,1709290250591,-500.0,0.00022191,2]
[315933105,1709290250600,-500.0,0.00022191,2]
[315933106,1709290250610,-500.0,0.00022191,2]
[315933107,1709290250620,-500.0,0.00022191,2]
[315933108,1709290250630,-500.0,0.00022191,2]
[315933109,1709290250639,-576.34,0.00022191,2]
[315933110,1709290250649,-500.0,0.00022191,2]
[315933111,1709290250658,-729.71,0.00022191,2]
[315933112,1709290250668,-797.85,0.00022191,2]
[315933113,1709290250677,-500.0,0.00022191,2]
[315933114,1709290250687,-500.0,0.00022191,2]
[315933115,1709290250697,-1205.58,0.00022191,2]
[315933116,1709290250709,-603.21,0.00022191,2]
[315933117,1709290250719,-500.0,0.00022191,2]
[315933118,1709290250730,-525.12,0.00022191,2]
[315933119,1709290250740,-500.0,0.00022191,2]
[315933120,1709290250750,-9774.08,0.00022191,2]
[315933121,1709290250760,-500.0,0.00022191,2]
[315933122,1709290250769,-500.0,0.00022191,2]
[315933123,1709290250779,-648.98,0.00022191,2]
[315933124,1709290250789,-594.23,0.00022191,2]
[315933125,1709290250799,-1253.27,0.00022191,2]
[315933126,1709290250809,-500.0,0.00022191,2]
[315933127,1709290250819,-500.0,0.00022191,2]
[315933128,1709290250829,-680.27,0.00022191,2]
[315933129,1709290250839,-855.2,0.00022191,2]
[315933130,1709290250849,-270.92420482,0.00022191,2]
[315933131,1709290250863,-753.87,0.00022191,2]
[315933132,1709290250874,-1800.52,0.00022191,2]
[315933133,1709290250888,-500.0,0.00022191,2]
[315933134,1709290250899,-905.95,0.00022191,2]
[315933135,1709290250910,-500.0,0.00022191,2]
[315933136,1709290250921,-602.09,0.00022191,2]
[315933137,1709290250932,-567.45,0.00022191,2]
[315933138,1709290250942,-712.83,0.00022191,2]
[315933139,1709290250954,-500.0,0.00022191,2]
[315933140,1709290250966,-1921.37,0.00022191,2]
[315933141,1709290250977,-918.33,0.00022191,2]
[315933142,1709290250988,-500.0,0.00022191,2]
[315933143,1709290250998,-719.09,0.00022191,2]
[315933144,1709290251008,-514.21,0.00022191,2]
[315933145,1709290251018,-500.0,0.00022191,2]
[315933146,1709290251028,-1834.75,0.00022191,2]
[315933147,1709290251038,-520.64,0.00022191,2]
[315933148,1709290251049,-19287.0,0.00022191,2]
[315933149,1709290251059,-704.6,0.00022191,2]
[315933150,1709290251069,-1135.51,0.00022191,2]
[315933151,1709290251078,-3637.42,0.00022191,2]
[315933152,1709290251089,-500.0,0.00022191,2]
[315933153,1709290251099,-2032.1,0.00022191,2]
[315933154,1709290251109,-979.11,0.00022191,2]
[315933155,1709290251119,-612.61,0.00022191,2]
[315933156,1709290251129,-679.38,0.00022191,2]
[315933157,1709290251142,-996.85,0.00022191,2]
[315933158,1709290251153,-379.7207765,0.00022191,2]
[315933159,1709290251163,-1337.76,0.00022191,2]
[315933160,1709290251173,-1058.81,0.00022191,2]
[315933161,1709290251183,-505.03,0.00022191,2]
[315933162,1709290251193,-500.0,0.00022191,2]
[315933163,1709290251204,-1266.87,0.00022191,2]
[315933164,1709290251214,-500.0,0.00022191,2]
[315933165,1709290251224,-1338.75,0.00022191,2]
[315933166,1709290251234,-504.29,0.00022191,2]
[315933167,1709290251243,-2153.37,0.00022191,2]
[315933168,1709290251254,-500.0,0.00022191,2]
[315933169,1709290251263,-1803.64,0.00022191,2]
[315933170,1709290251273,-500.0,0.00022191,2]
[315933171,1709290251283,-500.0,0.00022191,2]
[315933172,1709290251293,-564.04,0.00022191,2]
[315933173,1709290251302,-7102.19565591,0.00022191,2]
[315933174,1709290251321,-4740.75434409,0.00022191,2]
[315933175,1709290251331,-1033.45,0.00022191,2]
[315933176,1709290251341,-474.61328483,0.00022191,2]
[315933177,1709290251359,-1400.44671517,0.00022191,2]
[315933178,1709290251370,-1257.24,0.00022191,2]
[315933179,1709290251381,-424.65110072,0.00022191,2]
[315933180,1709290251395,-75.34889928,0.00022191,2]
[315933181,1709290251406,-500.0,0.00022191,2]
[315933182,1709290251418,-1718.93,0.00022191,2]
[315933183,1709290251429,-500.0,0.00022191,2]
[315933184,1709290251441,-500.0,0.00022191,2]
[315933185,1709290251452,-500.0,0.00022191,2]
[315933186,1709290251466,-574.26,0.00022191,2]
[315933187,1709290251477,-3698.8,0.00022191,2]
[315933188,1709290251489,-1565.55,0.00022191,2]
[315933189,1709290251500,-500.0,0.00022191,2]
[315933190,1709290251511,-1337.29,0.00022191,2]
[315933191,1709290251521,-500.0,0.00022191,2]
[315933192,1709290251531,-638.42,0.00022191,2]
[315933193,1709290251541,-1424.21495285,0.00022191,2]
[315933194,1709290251564,-48.28504715,0.00022191,2]
[315933195,1709290251573,-2786.63,0.00022191,2]
[315933196,1709290251584,-589.79,0.00022191,2]
[315933197,1709290251594,-500.0,0.00022191,2]
[315933198,1709290251604,-546.41,0.00022191,2]
[315933199,1709290251613,-500.0,0.00022191,2]
[315933200,1709290251623,-1449.34,0.00022191,2]
[315933201,1709290251633,-500.0,0.00022191,2]
[315933202,1709290251643,-1680.01,0.00022191,2]
[315933203,1709290251652,-500.0,0.00022191,2]
[315933204,1709290251664,-500.0,0.00022191,2]
[315933205,1709290251674,-500.0,0.00022191,2]
[315933206,1709290251683,-1594.17539475,0.00022191,2]
[315933207,1709290253479,-258.90026698,0.00019999,2]
[315933208,1709290253492,-2820.59912806,0.00019999,2]
[315933209,1709290253502,-500.0,0.00021917,2]
[315933210,1709290253512,-500.0,0.00021917,2]
[315933211,1709290253522,-500.0,0.00021917,2]
[315933212,1709290253532,-631.90460525,0.00022191,2]
[315933213,1709290253542,-1631.88,0.00022191,2]
[315933214,1709290253551,-887.01,0.00022191,2]
[315933215,1709290253561,-1155.69,0.00022191,2]